bitfinex/quotes_SOLUSD_20250626
["timestamp","ask_amount","ask_price","bid_price","bid_amount"]
[1750966470024,35.52733316,142.06,142.05,0.02]
[1750966470221,28.72,142.06,142.05,0.02]
[1750966471452,6.80733316,142.06,142.05,0.02]
[1750966471745,35.52733316,142.06,142.05,0.02]
[1750966472950,28.72,142.06,142.05,0.02]
[1750966473121,42.56661233,142.06,142.05,0.02]
[1750966473322,35.52733316,142.06,142.05,0.02]
[1750966474861,42.56661233,142.06,142.05,0.02]
[1750966476723,28.72,142.06,142.05,0.02]
[1750966476945,35.52733316,142.06,142.05,0.02]
[1750966477841,6.16,142.12,142.05,6.82733316]
[1750966478144,13.84346501,142.13,142.08,6.80733316]
[1750966478344,28.72,142.12,142.1,6.80733316]
[1750966478559,28.72,142.13,142.11,6.80733316]
[1750966478729,28.72,142.13,142.12,6.80733316]
[1750966478929,28.72,142.13,142.11,6.80733316]
[1750966480438,28.72,142.13,142.1,6.80733316]
[1750966482260,28.72,142.13,142.05,32.16]
[1750966482550,6.80733316,142.11,142.07,6.80733316]
[1750966482729,28.72,142.11,142.09,6.80733316]
[1750966484356,28.72,142.11,142.08,6.80733316]
[1750966486842,28.72,142.11,142.09,6.80733316]
[1750966488858,28.7,142.13,142.1,6.80733316]
[1750966489071,28.7,142.13,142.06,19.49573834]
[1750966489072,28.7,142.13,142.11,6.80733316]
[1750966495348,28.74,142.15,142.11,6.80733316]
[1750966495741,35.54733316,142.15,142.11,6.80733316]
[1750966496042,28.74,142.15,142.11,6.80733316]
[1750966496251,28.74,142.15,142.12,6.80733316]
[1750966497352,28.74,142.15,142.11,6.80733316]
[1750966497556,28.74,142.15,142.12,6.80733316]
[1750966499054,28.74,142.15,142.1,91.0387]
[1750966499055,28.74,142.15,142.13,6.80733316]
[1750966499246,0.04,142.15,142.13,6.80733316]
[1750966500462,0.04,142.15,142.12,6.80733316]
[1750966503677,0.04,142.15,142.13,6.80733316]
[1750966504456,0.04,142.15,142.12,6.80733316]
[1750966504650,0.04,142.15,142.1,91.0387]
[1750966504651,6.80733316,142.14,142.1,97.84603316]
[1750966505057,6.84733316,142.15,142.11,6.80733316]
[1750966505563,0.04,142.15,142.14,6.80733316]
[1750966505967,0.04,142.15,142.13,6.80733316]
[1750966506952,0.04,142.15,142.14,6.80733316]
[1750966509250,0.04,142.15,142.11,6.14]
[1750966509454,6.84733316,142.15,142.11,12.94733316]
[1750966509890,0.04,142.15,142.12,6.80733316]
[1750966510676,0.04,142.15,142.13,6.80733316]
[1750966510978,0.04,142.15,142.14,6.80733316]
[1750966512658,0.04,142.15,142.14,8.31763316]
[1750966514287,0.04,142.15,142.14,116.50944359]
[1750966516280,0.04,142.15,142.14,90.9103]
[1750966516461,0.04,142.15,142.14,97.71763316]
[1750966518084,0.04,142.15,142.14,116.50944359]
[1750966518468,0.04,142.22,142.14,149.31677675]
[1750966518662,0.04,142.22,142.2,6.80733316]
[1750966519562,0.04,142.22,142.21,6.80733316]
[1750966521467,0.04,142.22,142.2,6.80733316]
[1750966524788,0.04,142.22,142.21,6.80733316]
[1750966525493,0.04,142.22,142.2,8.45813316]
[1750966525695,0.04,142.22,142.2,6.80733316]
[1750966525889,6.84733316,142.22,142.18,122.20733316]
[1750966526192,6.84733316,142.22,142.18,32.80733316]
[1750966527505,6.80733316,142.21,142.17,14.59813316]
[1750966527685,6.80733316,142.2,142.17,6.14]
[1750966528778,7.07150811,142.22,142.17,6.14]
[1750966528779,6.80733316,142.19,142.17,6.14]
[1750966529184,6.80733316,142.18,142.17,6.14]
[1750966529589,6.80733316,142.19,142.17,6.14]
[1750966531096,7.03255273,142.2,142.17,6.14]
[1750966531294,6.80733316,142.19,142.17,6.14]
[1750966532110,6.80733316,142.18,142.14,8.44463316]
[1750966532310,6.80733316,142.16,142.12,32.14]
[1750966532514,6.80733316,142.16,142.12,38.94733316]
[1750966535304,6.80733316,142.14,142.12,6.14]
[1750966535504,6.80733316,142.13,142.06,7.654]
[1750966535707,6.80733316,142.11,142.07,25.45698202]
[1750966535885,6.80733316,142.1,142.06,97.054]
[1750966536193,6.80733316,142.1,142.06,14.46133316]
[1750966536798,23.88634655,142.15,142.06,14.46133316]
[1750966536992,6.80733316,142.1,142.06,14.46133316]
[1750966538713,6.80733316,142.1,142.06,6.14]
[1750966539114,6.80733316,142.09,142.06,6.14]
[1750966540108,6.80733316,142.07,142.05,0.02]
[1750966540315,6.80733316,142.06,142.05,0.02]
[1750966542511,6.80733316,142.07,142.05,0.02]
[1750966542712,6.80733316,142.06,142.05,0.02]
[1750966544495,6.80733316,142.07,142.05,0.02]
[1750966546117,35.73695695,142.11,142.06,6.80733316]
[1750966546318,6.80733316,142.1,142.06,6.80733316]
[1750966546517,35.73695695,142.11,142.06,6.80733316]
[1750966546518,35.50733316,142.11,142.06,6.80733316]
[1750966546820,35.50733316,142.11,142.05,0.02]
[1750966546821,35.50733316,142.11,142.07,6.80733316]
[1750966547517,28.7,142.11,142.08,6.80733316]
[1750966547718,6.80733316,142.12,142.08,6.80733316]
[1750966549206,13.84378834,142.12,142.08,6.80733316]
[1750966550322,7.03601964,142.13,142.08,6.80733316]
[1750966550508,13.8433528,142.13,142.09,6.80733316]
[1750966552219,7.03601964,142.13,142.08,6.80733316]
[1750966552536,6.80733316,142.12,142.08,6.80733316]
[1750966552906,13.8433528,142.13,142.09,6.80733316]
[1750966553629,7.03601964,142.13,142.09,6.80733316]
[1750966553821,13.8433528,142.13,142.09,6.80733316]
[1750966554530,13.8433528,142.13,142.08,6.80733316]
[1750966554938,6.80733316,142.09,142.05,0.02]
[1750966555116,6.80733316,142.07,142.05,0.02]
[1750966555516,24.76771192,142.13,142.05,0.02]
[1750966555517,6.80733316,142.08,142.05,0.02]
[1750966556047,24.76771192,142.13,142.05,0.02]
[1750966556048,6.80733316,142.09,142.05,6.82733316]
[1750966556212,7.03828828,142.08,142.05,0.02]
[1750966557005,13.84562144,142.08,142.05,0.02]
[1750966559632,6.80733316,142.06,142.05,0.02]
[1750966560505,6.80733316,142.07,142.05,0.02]
[1750966561014,6.80733316,142.06,142.05,0.02]
[1750966562912,13.84661233,142.06,142.05,0.02]
[1750966566636,42.56610717,142.08,142.05,0.02]
[1750966566943,6.80733316,142.07,142.05,0.02]
[1750966569819,35.52733316,142.08,142.05,0.02]
[1750966570029,28.72,142.08,142.05,6.82733316]
[1750966570218,6.80733316,142.09,142.05,6.82733316]
[1750966570418,6.80733316,142.09,142.05,0.02]
[1750966570616,6.80733316,142.09,142.05,6.82733316]
[1750966572219,6.80733316,142.08,142.05,0.02]
[1750966572442,6.80733316,142.06,142.05,0.02]
[1750966574617,13.84661233,142.06,142.05,0.02]
[1750966575825,6.80733316,142.06,142.05,0.02]
[1750966576027,13.84661233,142.06,142.05,0.02]
[1750966576938,6.80733316,142.06,142.05,0.02]
[1750966578742,12.26763337,142.09,142.05,0.02]
[1750966578948,6.80733316,142.08,142.05,0.02]
[1750966580252,12.03695056,142.08,142.05,0.02]
[1750966580445,6.80733316,142.07,142.05,0.02]
[1750966580951,13.8456876,142.08,142.05,0.02]
[1750966581150,12.26764832,142.09,142.05,0.02]
[1750966581361,6.80733316,142.08,142.05,0.02]
[1750966583050,12.26764832,142.09,142.05,0.02]
[1750966583051,13.84661233,142.06,142.05,0.02]
[1750966583734,7.03927917,142.06,142.05,0.02]
[1750966583940,13.84661233,142.06,142.05,0.02]
[1750966586148,5.2296174,142.07,142.05,0.02]
[1750966586359,7.03838145,142.08,142.05,0.02]
[1750966586659,6.80733316,142.07,142.05,0.02]
[1750966586860,7.03838145,142.08,142.05,0.02]
[1750966586861,6.80733316,142.06,142.05,0.02]
[1750966587456,6.80733316,142.07,142.05,0.02]
[1750966587637,13.84616254,142.07,142.05,0.02]
[1750966587837,6.80733316,142.07,142.05,0.02]
[1750966588334,13.84586475,142.08,142.05,0.02]
[1750966588534,6.80733316,142.08,142.05,0.02]
[1750966588739,13.84570842,142.08,142.05,0.02]
[1750966590572,19.09941272,142.09,142.05,0.02]
[1750966590754,13.84521632,142.09,142.05,0.02]
[1750966591859,6.53161826,142.14,142.08,6.80733316]
[1750966592163,5.25287777,142.13,142.09,6.80733316]
[1750966592541,12.28874712,142.13,142.09,6.80733316]
[1750966593153,5.25287777,142.13,142.09,6.80733316]
[1750966593369,5.25287777,142.13,142.1,6.80733316]
[1750966593671,12.28869947,142.13,142.1,6.80733316]
[1750966593851,6.80733316,142.14,142.1,6.80733316]
[1750966593852,5.25287777,142.14,142.1,6.80733316]
[1750966594057,12.28848248,142.14,142.1,6.80733316]
[1750966594264,19.09581564,142.14,142.1,6.80733316]
[1750966594459,6.80733316,142.13,142.09,6.80733316]
[1750966595452,6.80733316,142.12,142.06,1.5357]
[1750966595772,6.80733316,142.11,142.06,14.48303316]
[1750966596079,6.80733316,142.1,142.06,103.88303316]
[1750966597069,6.80733316,142.11,142.07,6.80733316]
[1750966597843,7.03653989,142.12,142.07,6.80733316]
[1750966598048,6.80733316,142.11,142.07,6.80733316]
[1750966598896,13.84417245,142.11,142.07,6.80733316]
[1750966600376,13.84417245,142.11,142.06,103.88303316]
[1750966600571,6.80733316,142.1,142.06,103.88303316]
[1750966600880,6.80733316,142.1,142.06,97.0757]
[1750966601175,6.80733316,142.1,142.06,97.74303316]
[1750966601386,6.80733316,142.07,142.06,1.5357]
[1750966601674,6.80733316,142.09,142.06,1.5357]
[1750966602079,6.80733316,142.1,142.06,1.5357]
[1750966602458,13.84487955,142.1,142.06,1.5357]
[1750966604374,6.80733316,142.09,142.06,1.5357]
[1750966604576,6.80733316,142.08,142.06,1.5357]
[1750966604964,6.80733316,142.07,142.06,1.5357]
[1750966608367,6.80733316,142.08,142.06,1.5357]
[1750966609482,6.80733316,142.07,142.05,0.02]
[1750966611424,13.84584066,142.08,142.05,0.02]
[1750966612691,5.25287777,142.1,142.05,6.82733316]
[1750966612892,13.84417639,142.11,142.07,6.80733316]
[1750966613461,6.80733316,142.1,142.06,6.80733316]
[1750966617702,12.2893519,142.12,142.07,6.80733316]
[1750966617882,13.84380729,142.12,142.08,6.80733316]
[1750966618074,13.84380729,142.12,142.09,1.5003]
[1750966618270,5.25287777,142.13,142.09,8.30763316]
[1750966618497,13.84292676,142.14,142.1,6.80733316]
[1750966618697,5.25287777,142.14,142.11,6.80733316]
[1750966618994,19.09476333,142.16,142.12,6.80733316]
[1750966619303,13.84188556,142.16,142.12,6.80733316]
[1750966619483,19.09476333,142.16,142.12,6.80733316]
[1750966619683,13.84188556,142.16,142.12,6.80733316]
[1750966619905,5.25287777,142.16,142.12,13.29923316]
[1750966620112,13.841669,142.16,142.12,13.29923316]
[1750966620987,6.80733316,142.16,142.12,13.29923316]
[1750966621300,6.80733316,142.17,142.13,6.80733316]
[1750966621597,6.80733316,142.17,142.12,6.4919]
[1750966621598,12.06021093,142.19,142.15,6.80733316]
[1750966621801,6.80733316,142.19,142.15,6.80733316]
[1750966622001,6.80733316,142.2,142.16,6.80733316]
[1750966622190,32.80733316,142.2,142.16,6.80733316]
[1750966622898,0.04,142.21,142.18,6.80733316]
[1750966623081,0.04,142.21,142.19,6.80733316]
[1750966623693,0.04,142.21,142.2,6.80733316]
[1750966623909,0.04,142.21,142.2,8.32313316]
[1750966625076,0.04,142.21,142.2,1.5158]
[1750966626108,0.04,142.21,142.2,8.32313316]
[1750966627002,0.04,142.21,142.2,1.5158]
[1750966633496,0.04,142.21,142.18,6.80733316]
[1750966633696,6.80733316,142.19,142.16,1.5702]
[1750966633946,6.80733316,142.18,142.16,1.5702]
[1750966634114,6.80733316,142.2,142.16,1.5702]
[1750966634315,6.80733316,142.2,142.16,8.37753316]
[1750966635229,13.83976805,142.2,142.16,1.5702]
[1750966635392,6.80733316,142.19,142.16,1.5702]
[1750966635592,7.03243489,142.2,142.16,1.5702]
[1750966635593,6.80733316,142.18,142.16,1.5702]
[1750966636109,6.80733316,142.17,142.16,1.5702]
[1750966637122,6.80733316,142.17,142.14,6.0588]
[1750966639412,6.80733316,142.18,142.14,12.86613316]
[1750966640012,13.84068298,142.18,142.14,6.0588]
[1750966640209,6.80733316,142.17,142.14,6.0588]
[1750966640600,6.80733316,142.17,142.13,97.80173316]
[1750966640800,7.03334982,142.18,142.13,1.5944]
[1750966641000,6.80733316,142.15,142.13,1.5944]
[1750966641213,6.80733316,142.16,142.13,1.5944]
[1750966642100,6.80733316,142.17,142.13,8.40173316]
[1750966643414,7.03333836,142.18,142.13,8.40173316]
[1750966643605,6.80733316,142.17,142.13,8.40173316]
[1750966644597,17.76291458,142.21,142.14,6.80733316]
[1750966644598,6.80733316,142.19,142.14,6.80733316]
[1750966644821,6.80733316,142.18,142.14,6.80733316]
[1750966645598,6.80733316,142.15,142.1,7.6548]
[1750966645816,6.80733316,142.13,142.1,7.6548]
[1750966646402,0.14216157,142.19,142.1,7.6548]
[1750966646403,6.80733316,142.14,142.1,7.6548]
[1750966646596,49.40196967,142.2,142.13,6.80733316]
[1750966646597,6.80733316,142.17,142.13,6.80733316]
[1750966647321,6.80733316,142.16,142.12,6.80733316]
[1750966649230,6.83121493,142.21,142.14,6.80733316]
[1750966649404,6.80733316,142.19,142.14,6.80733316]
[1750966649603,13.84030816,142.19,142.14,6.80733316]
[1750966650024,6.80733316,142.18,142.14,6.80733316]
[1750966650535,13.84030816,142.19,142.14,6.80733316]
[1750966650709,13.84030816,142.19,142.15,6.80733316]
[1750966650909,7.03246525,142.2,142.15,6.80733316]
[1750966651218,6.80733316,142.19,142.15,6.80733316]
[1750966651412,6.80733316,142.19,142.14,6.80733316]
[1750966651614,6.80733316,142.18,142.14,6.80733316]
[1750966652038,6.80733316,142.18,142.12,89.4]
[1750966652039,6.80733316,142.17,142.12,89.4]
[1750966652241,7.03342752,142.18,142.12,89.4]
[1750966652242,6.80733316,142.14,142.12,89.4]
[1750966652407,6.80733316,142.14,142.1,110.00213316]
[1750966653121,7.03342752,142.18,142.1,110.00213316]
[1750966653122,6.80733316,142.15,142.1,110.00213316]
[1750966653837,6.80733316,142.14,142.1,103.1948]
[1750966655017,6.80733316,142.14,142.1,110.00213316]
[1750966657123,6.80733316,142.14,142.1,103.1948]
[1750966657323,6.80733316,142.14,142.1,110.00213316]
[1750966659037,7.03284337,142.19,142.12,6.80733316]
[1750966659222,7.03284337,142.19,142.14,6.80733316]
[1750966659223,6.80733316,142.18,142.14,6.80733316]
[1750966659423,6.80733316,142.19,142.15,6.80733316]
[1750966659933,6.80733316,142.17,142.12,6.80733316]
[1750966660228,6.80733316,142.17,142.12,96.20733316]
[1750966660428,6.80733316,142.17,142.12,89.4]
[1750966660617,6.80733316,142.16,142.12,96.20733316]
[1750966660818,6.80733316,142.17,142.12,96.20733316]
[1750966661225,6.80733316,142.18,142.14,6.80733316]
[1750966667114,13.84069458,142.18,142.14,6.80733316]
[1750966668850,13.84069458,142.18,142.13,6.80733316]
[1750966671646,6.80733316,142.17,142.13,6.80733316]
[1750966671821,6.80733316,142.17,142.12,96.20733316]
[1750966672623,7.03336142,142.18,142.12,89.4]
[1750966672624,6.80733316,142.15,142.12,89.4]
[1750966672823,6.80733316,142.16,142.12,89.4]
[1750966675839,6.80733316,142.16,142.12,96.20733316]
[1750966679040,6.80733316,142.15,142.12,89.4]
[1750966679247,6.80733316,142.14,142.12,89.4]
[1750966679620,5.26200173,142.14,142.1,6.16]
[1750966679824,6.80733316,142.12,142.1,6.16]
[1750966682044,6.80733316,142.13,142.1,6.16]
[1750966682445,6.80733316,142.12,142.1,6.16]
[1750966683841,6.80733316,142.12,142.1,0.02]
[1750966684020,6.80733316,142.11,142.1,0.02]
[1750966684222,6.80733316,142.12,142.1,0.02]
[1750966685044,12.0661326,142.14,142.1,6.82733316]
[1750966685216,6.80733316,142.14,142.1,6.82733316]
[1750966685647,12.0661326,142.14,142.1,6.82733316]
[1750966685829,6.80733316,142.14,142.1,6.82733316]
[1750966686522,12.0661326,142.15,142.11,6.80733316]
[1750966686720,6.80733316,142.15,142.11,6.80733316]
[1750966686955,12.0661326,142.15,142.11,6.80733316]
[1750966687138,6.80733316,142.15,142.11,6.80733316]
[1750966687331,12.0661326,142.15,142.11,6.80733316]
[1750966687652,6.80733316,142.14,142.1,6.82733316]
[1750966691934,5.25879944,142.15,142.11,6.80733316]
[1750966692156,6.53161826,142.19,142.14,6.80733316]
[1750966692335,6.53161826,142.19,142.14,0.70353172]
[1750966692336,5.25430088,142.19,142.14,0.70353172]
[1750966692534,6.80733316,142.17,142.13,25.45698202]
[1750966692927,12.06163404,142.2,142.16,6.80733316]
[1750966693144,0.04,142.21,142.18,6.80733316]
[1750966693145,5.29430088,142.21,142.18,6.80733316]
[1750966693346,0.04,142.21,142.2,25.45698202]
[1750966696935,0.04,142.21,142.18,1.5912]
[1750966697258,6.80733316,142.19,142.15,14.46103316]
[1750966697426,0.04,142.21,142.17,18.64964886]
[1750966697849,6.84733316,142.21,142.17,6.80733316]
[1750966698552,6.84733316,142.21,142.15,7.6537]
[1750966698553,6.80733316,142.18,142.15,7.6537]
[1750966698856,6.80733316,142.17,142.15,7.6537]
[1750966699356,6.80733316,142.18,142.15,7.6537]
[1750966700438,6.80733316,142.17,142.15,6.14]
[1750966700651,6.80733316,142.16,142.15,6.14]
[1750966703263,6.80733316,142.16,142.11,1.5375]
[1750966703560,6.80733316,142.13,142.11,1.5375]
[1750966703936,6.80733316,142.14,142.11,1.5375]
[1750966704549,5.25430088,142.18,142.11,8.34483316]
[1750966704735,6.80733316,142.17,142.13,6.80733316]
[1750966704939,6.80733316,142.19,142.15,6.80733316]
[1750966705335,6.80733316,142.18,142.14,6.80733316]
[1750966705937,6.80733316,142.18,142.11,27.5375]
[1750966705938,6.80733316,142.17,142.13,6.80733316]
[1750966707048,6.80733316,142.16,142.12,32.80733316]
[1750966707246,6.80733316,142.16,142.12,122.20733316]
[1750966707446,6.80733316,142.15,142.12,89.4]
[1750966707761,6.80733316,142.14,142.11,1.5375]
[1750966707971,6.80733316,142.13,142.11,1.5375]
[1750966708174,6.80733316,142.12,142.1,0.02]
[1750966708468,6.80733316,142.11,142.1,0.02]
[1750966712657,5.25430088,142.16,142.1,6.82733316]
[1750966712967,6.80733316,142.14,142.1,6.82733316]
[1750966713352,6.80733316,142.13,142.1,0.02]
[1750966713968,6.80733316,142.12,142.1,0.02]
[1750966714157,6.80733316,142.11,142.1,0.02]
[1750966714466,6.80733316,142.14,142.1,6.82733316]
[1750966714769,6.80733316,142.15,142.11,6.80733316]
[1750966715148,7.03383273,142.17,142.1,0.02]
[1750966715149,6.80733316,142.16,142.12,6.80733316]
[1750966715353,6.80733316,142.16,142.11,6.80733316]
[1750966715556,6.80733316,142.16,142.12,6.80733316]
[1750966715766,6.80733316,142.15,142.11,6.80733316]
[1750966716148,7.03395383,142.17,142.12,6.80733316]
[1750966716346,13.84073325,142.18,142.14,6.80733316]
[1750966716576,6.80733316,142.17,142.13,6.80733316]
[1750966716746,6.80733316,142.17,142.11,18.64964886]
[1750966716952,6.80733316,142.17,142.13,6.80733316]
[1750966717567,7.03340009,142.18,142.13,6.80733316]
[1750966717859,6.80733316,142.17,142.13,6.80733316]
[1750966719662,6.80733316,142.17,142.12,6.80733316]
[1750966721873,6.80733316,142.16,142.12,6.80733316]
[1750966723255,6.80733316,142.15,142.1,13.02733316]
[1750966723462,6.80733316,142.15,142.11,6.80733316]
[1750966724000,6.80733316,142.15,142.1,13.02733316]
[1750966724668,6.80733316,142.15,142.11,6.80733316]
[1750966726175,6.80733316,142.15,142.11,96.20733316]
[1750966726366,6.80733316,142.15,142.11,89.4]
[1750966727083,6.80733316,142.14,142.11,89.4]
[1750966727269,6.80733316,142.14,142.1,102.42733316]
[1750966727584,6.80733316,142.13,142.1,95.62]
[1750966728976,6.80733316,142.12,142.1,95.62]
[1750966729149,6.80733316,142.11,142.1,6.22]
[1750966729349,6.80733316,142.12,142.1,6.22]
[1750966730382,6.80733316,142.11,142.1,6.22]
[1750966731372,6.80733316,142.12,142.1,6.22]
[1750966731567,6.80733316,142.13,142.1,6.22]
[1750966736283,6.80733316,142.14,142.1,6.22]
[1750966736460,6.80733316,142.14,142.1,13.02733316]
[1750966736657,5.24231913,142.18,142.12,6.80733316]
[1750966736902,6.80733316,142.16,142.12,6.80733316]
[1750966737057,6.80733316,142.17,142.13,6.80733316]
[1750966740085,6.80733316,142.16,142.12,14.84923316]
[1750966740970,6.80733316,142.14,142.12,1.5566]
[1750966741579,24.27705016,142.2,142.12,1.5566]
[1750966741580,6.80733316,142.15,142.12,1.5566]
[1750966743998,6.80733316,142.16,142.12,8.36393316]
[1750966745381,6.80733316,142.15,142.12,1.5566]
[1750966747074,6.80733316,142.16,142.12,8.36393316]
[1750966747280,7.03284337,142.19,142.12,8.36393316]
[1750966747475,12.06476082,142.18,142.13,6.80733316]
[1750966747675,5.25742766,142.18,142.14,6.80733316]
[1750966747887,12.06476082,142.18,142.14,6.80733316]
[1750966748086,12.06476082,142.18,142.13,6.80733316]
[1750966748498,12.06476082,142.18,142.14,6.80733316]
[1750966748801,6.80733316,142.18,142.14,6.80733316]
[1750966749093,12.06476082,142.18,142.14,6.80733316]
[1750966749292,6.80733316,142.18,142.14,6.80733316]
[1750966749591,12.06476082,142.18,142.14,6.80733316]
[1750966750489,6.80733316,142.17,142.13,6.80733316]
[1750966752067,6.80733316,142.14,142.12,90.9566]
[1750966752267,6.80733316,142.14,142.12,1.5566]
[1750966752501,5.25734155,142.16,142.12,1.5566]
[1750966752502,6.80733316,142.13,142.12,1.5566]
[1750966753172,6.80733316,142.14,142.12,1.5566]
[1750966753380,6.80733316,142.13,142.12,1.5566]
[1750966755395,6.80733316,142.14,142.12,1.5566]
[1750966756573,6.80733316,142.15,142.12,1.5566]
[1750966758875,12.06805982,142.16,142.12,1.5566]
[1750966759080,12.06796991,142.16,142.12,1.5566]
[1750966759278,6.80733316,142.16,142.12,1.5566]
[1750966760398,5.26063675,142.17,142.14,6.80733316]
[1750966760589,6.80733316,142.18,142.14,6.80733316]
[1750966760993,5.26025918,142.17,142.13,6.80733316]
[1750966761193,7.03314846,142.19,142.13,6.80733316]
[1750966761390,12.06725256,142.18,142.13,6.80733316]
[1750966761578,6.80733316,142.18,142.13,6.80733316]
[1750966761776,6.80733316,142.17,142.13,6.80733316]
[1750966762578,6.80733316,142.17,142.12,8.36393316]
[1750966763714,5.25938451,142.2,142.15,6.80733316]
[1750966763917,6.80733316,142.19,142.15,6.80733316]
[1750966764300,12.06632912,142.19,142.15,6.80733316]
[1750966764492,12.06632912,142.2,142.16,6.80733316]
[1750966764890,12.06632912,142.2,142.15,6.80733316]
[1750966766124,6.80733316,142.19,142.15,6.80733316]
[1750966766610,6.80733316,142.2,142.16,6.80733316]
[1750966766796,12.10632912,142.21,142.16,6.80733316]
[1750966767199,12.10632912,142.21,142.15,89.4]
[1750966767513,6.84733316,142.21,142.17,6.80733316]
[1750966767708,6.84733316,142.21,142.15,89.4]
[1750966767898,6.80733316,142.2,142.16,6.80733316]
[1750966768896,12.33088095,142.21,142.16,6.80733316]
[1750966769087,6.80733316,142.2,142.16,6.80733316]
[1750966770811,12.10632912,142.21,142.17,6.80733316]
[1750966771014,0.04,142.21,142.17,8.32423316]
[1750966771219,6.84733316,142.21,142.17,8.32423316]
[1750966772419,0.04,142.21,142.17,8.32423316]
[1750966772591,6.84733316,142.21,142.17,8.32423316]
[1750966773716,6.84733316,142.21,142.17,1.5169]
[1750966774609,0.04,142.21,142.17,8.32423316]
[1750966774797,6.84733316,142.21,142.17,8.32423316]
[1750966775399,6.80733316,142.19,142.17,1.5169]
[1750966782447,6.80733316,142.2,142.17,1.5169]
[1750966784229,19.13836545,142.21,142.17,1.5169]
[1750966785534,6.80733316,142.2,142.17,1.5169]
[1750966786935,13.83978644,142.2,142.17,1.5169]
[1750966787338,6.80733316,142.19,142.17,1.5169]
[1750966788939,19.0987824,142.2,142.17,1.5169]
[1750966789118,19.09249615,142.2,142.17,1.5169]
[1750966789329,12.06004287,142.2,142.17,1.5169]
[1750966789537,5.29270971,142.21,142.17,8.32423316]
[1750966789930,5.29270971,142.21,142.18,6.80733316]
[1750966790241,0.04,142.21,142.18,6.80733316]
[1750966790534,0.04,142.21,142.17,97.72423316]
[1750966791438,6.84733316,142.21,142.17,97.72423316]
[1750966792444,6.80733316,142.2,142.17,90.9169]
[1750966793838,12.10004287,142.21,142.17,90.9169]
[1750966794046,5.29270971,142.21,142.19,6.80733316]
[1750966794342,0.04,142.21,142.19,6.80733316]
[1750966797043,0.04,142.21,142.18,6.80733316]
[1750966798440,0.04,142.21,142.17,97.72423316]
[1750966798824,6.84733316,142.21,142.17,90.9169]
[1750966799126,6.80733316,142.2,142.17,90.9169]
[1750966799324,12.06004287,142.2,142.17,90.9169]
[1750966800440,12.06004287,142.2,142.16,6.2]
[1750966800441,6.80733316,142.18,142.16,6.2]
[1750966801446,6.80733316,142.17,142.13,1.5349]
[1750966801745,7.03234883,142.2,142.13,1.5349]
[1750966801746,5.25270971,142.18,142.13,1.5349]
[1750966801934,6.80733316,142.17,142.13,8.34223316]
[1750966802454,12.06498423,142.18,142.14,6.80733316]
[1750966802746,6.80733316,142.19,142.15,6.80733316]
[1750966802949,12.06578385,142.19,142.15,6.80733316]
[1750966803245,6.80733316,142.19,142.15,6.80733316]
[1750966804242,6.80733316,142.18,142.14,6.80733316]
[1750966804457,6.80733316,142.15,142.13,1.5349]
[1750966804659,6.80733316,142.14,142.11,6.16]
[1750966804952,6.80733316,142.13,142.11,6.16]
[1750966805163,6.56588713,142.19,142.11,6.16]
[1750966805164,6.80733316,142.14,142.11,6.16]
[1750966805450,7.03482237,142.15,142.11,6.16]
[1750966805652,6.80733316,142.14,142.11,6.16]
[1750966808643,12.06535645,142.17,142.13,6.80733316]
[1750966808838,6.80733316,142.17,142.13,6.80733316]
[1750966809039,13.84121843,142.17,142.13,6.80733316]
[1750966809352,19.09924172,142.17,142.13,6.80733316]
[1750966809552,13.84121843,142.17,142.13,6.80733316]
[1750966809943,19.09924172,142.17,142.13,6.80733316]
[1750966810243,13.84121843,142.17,142.13,6.80733316]
[1750966811352,6.80733316,142.16,142.13,6.80733316]
[1750966811553,6.80733316,142.17,142.12,6.80733316]
[1750966812760,6.80733316,142.15,142.11,95.56]
[1750966813062,7.03398607,142.17,142.11,89.4]
[1750966813063,6.80733316,142.14,142.11,89.4]
[1750966813361,6.80733316,142.15,142.11,6.80733316]
[1750966814952,6.80733316,142.14,142.1,96.22733316]
[1750966817866,6.80733316,142.14,142.1,6.82733316]
[1750966818071,6.80733316,142.14,142.1,0.02]
[1750966818271,6.80733316,142.12,142.1,0.02]
[1750966819474,6.80733316,142.13,142.1,0.02]
[1750966820161,7.03541618,142.14,142.1,0.02]
[1750966820162,13.84274934,142.14,142.1,0.02]
[1750966821154,6.80733316,142.14,142.1,6.82733316]